[Event "Titled Tuesday Blitz June 1 2021"]
[White "Shyaamnikhil P"]
[Black "Supi, Luis Paulo"]
[WhiteFideId "5024218"]
[BlackFideId "2106388"]
[WhiteElo "2300"]
[BlackElo "2369"]
[Result "0-1"]
[Round "11"]
[TimeControl "180+1"]
[Date "2021.06.01"]
[WhiteClock "0:00:01"]
[BlackClock "0:00:06"]

1. e3 {[%clk 0:03:00]}  d5 {[%clk 0:02:59]} 2. c4 {[%clk 0:03:00]}  e6 {[%clk 0:02:58]} 3. Nf3 {[%clk 0:02:59]}  Nf6 {[%clk 0:02:58]} 4. b3 {[%clk 0:02:58]}  c5 {[%clk 0:02:57]} 5. Bb2 {[%clk 0:02:58]}  Nc6 {[%clk 0:02:58]} 6. cxd5 {[%clk 0:02:58]}  exd5 {[%clk 0:02:59]} 7. Bb5 {[%clk 0:02:58]}  Bd6 {[%clk 0:02:56]} 8. O-O {[%clk 0:02:57]}  O-O {[%clk 0:02:53]} 9. d4 {[%clk 0:02:57]}  cxd4 {[%clk 0:02:53]} 10. Nxd4 {[%clk 0:02:56]}  Bc7 {[%clk 0:02:50]} 11. h3 {[%clk 0:02:48]}  Ne4 {[%clk 0:02:38]} 12. Nf3 {[%clk 0:02:45]}  Qd6 {[%clk 0:02:10]} 13. Bxc6 {[%clk 0:02:38]}  bxc6 {[%clk 0:02:07]} 14. Be5 {[%clk 0:02:35]}  Qe7 {[%clk 0:01:59]} 15. Bxc7 {[%clk 0:02:35]}  Qxc7 {[%clk 0:02:00]} 16. Nbd2 {[%clk 0:02:33]}  Ba6 {[%clk 0:01:39]} 17. Re1 {[%clk 0:02:33]}  Bd3 {[%clk 0:01:38]} 18. Nf1 {[%clk 0:02:26]}  Bxf1 {[%clk 0:01:27]} 19. Rxf1 {[%clk 0:02:27]}  Rfd8 {[%clk 0:01:26]} 20. Rc1 {[%clk 0:02:26]}  c5 {[%clk 0:01:26]} 21. Nd2 {[%clk 0:02:21]}  Nf6 {[%clk 0:01:26]} 22. Qc2 {[%clk 0:02:20]}  Rdc8 {[%clk 0:01:26]} 23. Rfd1 {[%clk 0:02:19]}  a5 {[%clk 0:01:25]} 24. Nb1 {[%clk 0:02:16]}  a4 {[%clk 0:01:17]} 25. Nc3 {[%clk 0:02:15]}  axb3 {[%clk 0:01:18]} 26. axb3 {[%clk 0:02:15]}  Qb7 {[%clk 0:01:17]} 27. Qf5 {[%clk 0:02:15]}  Rd8 {[%clk 0:01:02]} 28. Na4 {[%clk 0:02:11]}  c4 {[%clk 0:01:02]} 29. Nc3 {[%clk 0:01:46]}  cxb3 {[%clk 0:01:00]} 30. Rb1 {[%clk 0:01:46]}  h6 {[%clk 0:00:53]} 31. Qd3 {[%clk 0:01:38]}  Rab8 {[%clk 0:00:39]} 32. Rb2 {[%clk 0:01:37]}  Qc6 {[%clk 0:00:33]} 33. Ne2 {[%clk 0:01:21]}  Qc4 {[%clk 0:00:32]} 34. Nd4 {[%clk 0:01:21]}  Ne4 {[%clk 0:00:22]} 35. Rxb3 {[%clk 0:01:19]}  Rxb3 {[%clk 0:00:21]} 36. Qxb3 {[%clk 0:01:20]}  Rc8 {[%clk 0:00:16]} 37. Qb2 {[%clk 0:01:04]}  g6 {[%clk 0:00:15]} 38. Ra1 {[%clk 0:00:59]}  Qd3 {[%clk 0:00:13]} 39. Rc1 {[%clk 0:00:52]}  Ra8 {[%clk 0:00:10]} 40. Qb7 {[%clk 0:00:33]}  Qa3 {[%clk 0:00:09]} 41. Rc8+ {[%clk 0:00:30]}  Rxc8 {[%clk 0:00:08]} 42. Qxc8+ {[%clk 0:00:31]}  Kg7 {[%clk 0:00:09]} 43. Qc2 {[%clk 0:00:30]}  Qa1+ {[%clk 0:00:07]} 44. Kh2 {[%clk 0:00:30]}  Qa7 {[%clk 0:00:07]} 45. g3 {[%clk 0:00:30]}  Qe7 {[%clk 0:00:07]} 46. Kg2 {[%clk 0:00:30]}  Qf6 {[%clk 0:00:07]} 47. h4 {[%clk 0:00:29]}  h5 {[%clk 0:00:08]} 48. Qe2 {[%clk 0:00:29]}  Nd6 {[%clk 0:00:08]} 49. Qf3 {[%clk 0:00:28]}  Qe5 {[%clk 0:00:08]} 50. Nc6 {[%clk 0:00:25]}  Qe6 {[%clk 0:00:07]} 51. Nd4 {[%clk 0:00:25]}  Qe5 {[%clk 0:00:07]} 52. Nc6 {[%clk 0:00:25]}  Qe4 {[%clk 0:00:07]} 53. Nd4 {[%clk 0:00:24]}  Nc4 {[%clk 0:00:07]} 54. Qxe4 {[%clk 0:00:20]}  dxe4 {[%clk 0:00:08]} 55. Ne2 {[%clk 0:00:19]}  Kf6 {[%clk 0:00:08]} 56. Nf4 {[%clk 0:00:17]}  Kf5 {[%clk 0:00:08]} 57. Kf1 {[%clk 0:00:16]}  Ne5 {[%clk 0:00:08]} 58. Ke2 {[%clk 0:00:15]}  Ng4 {[%clk 0:00:08]} 59. Nd5 {[%clk 0:00:14]}  Ke5 {[%clk 0:00:08]} 60. Nf4 {[%clk 0:00:15]}  Nf6 {[%clk 0:00:08]} 61. f3 {[%clk 0:00:14]}  Kf5 {[%clk 0:00:07]} 62. Kf2 {[%clk 0:00:14]}  Ke5 {[%clk 0:00:07]} 63. Ke2 {[%clk 0:00:14]}  Kd6 {[%clk 0:00:07]} 64. Kf2 {[%clk 0:00:14]}  exf3 {[%clk 0:00:05]} 65. Kxf3 {[%clk 0:00:14]}  Ke5 {[%clk 0:00:06]} 66. Ne2 {[%clk 0:00:12]}  Kf5 {[%clk 0:00:07]} 67. Nd4+ {[%clk 0:00:12]}  Ke5 {[%clk 0:00:08]} 68. Nc6+ {[%clk 0:00:12]}  Kd5 {[%clk 0:00:08]} 69. Nd4 {[%clk 0:00:12]}  Ne4 {[%clk 0:00:08]} 70. Ne2 {[%clk 0:00:11]}  Nd2+ {[%clk 0:00:07]} 71. Kf2 {[%clk 0:00:11]}  Ke4 {[%clk 0:00:07]} 72. Nc3+ {[%clk 0:00:11]}  Kd3 {[%clk 0:00:08]} 73. Nd5 {[%clk 0:00:11]}  Ke4 {[%clk 0:00:07]} 74. Nf6+ {[%clk 0:00:10]}  Kf5 {[%clk 0:00:07]} 75. Nd7 {[%clk 0:00:09]}  Ke6 {[%clk 0:00:07]} 76. Nc5+ {[%clk 0:00:08]}  Ke5 {[%clk 0:00:07]} 77. Nd3+ {[%clk 0:00:07]}  Kf5 {[%clk 0:00:07]} 78. Nc5 {[%clk 0:00:06]}  Kg4 {[%clk 0:00:07]} 79. Kg2 {[%clk 0:00:04]}  Kf5 {[%clk 0:00:07]} 80. Nb7 {[%clk 0:00:02]}  Ke6 {[%clk 0:00:06]} 81. Kf2 {[%clk 0:00:02]}  Kd5 {[%clk 0:00:05]} 82. Nd8 {[%clk 0:00:01]}  f6 {[%clk 0:00:06]} 0-1


[Site "https://www.chess.com"]

[Event "Titled Tuesday Blitz June 1 2021"]
[White "Sieciechowicz, Marcin"]
[Black "Gokerkan, Cem Kaan"]
[WhiteFideId "1130170"]
[BlackFideId "6336760"]
[WhiteElo "2288"]
[BlackElo "2361"]
[Result "0-1"]
[Round "11"]
[TimeControl "180+1"]
[Date "2021.06.01"]
[WhiteClock "0:00:10"]
[BlackClock "0:00:39"]

1. d4 {[%clk 0:03:00]}  c5 {[%clk 0:02:57]} 2. d5 {[%clk 0:03:00]}  e5 {[%clk 0:02:58]} 3. e4 {[%clk 0:02:59]}  d6 {[%clk 0:02:58]} 4. f4 {[%clk 0:02:58]}  Be7 {[%clk 0:02:59]} 5. fxe5 {[%clk 0:02:54]}  dxe5 {[%clk 0:03:00]} 6. Nf3 {[%clk 0:02:54]}  Bd6 {[%clk 0:02:59]} 7. Nbd2 {[%clk 0:02:51]}  Ne7 {[%clk 0:02:56]} 8. Nc4 {[%clk 0:02:46]}  Ng6 {[%clk 0:02:56]} 9. a4 {[%clk 0:02:46]}  O-O {[%clk 0:02:55]} 10. Bd3 {[%clk 0:02:42]}  Na6 {[%clk 0:02:48]} 11. c3 {[%clk 0:02:38]}  Nc7 {[%clk 0:02:46]} 12. O-O {[%clk 0:02:38]}  Ne8 {[%clk 0:02:45]} 13. Be3 {[%clk 0:02:36]}  b6 {[%clk 0:02:43]} 14. Qd2 {[%clk 0:02:35]}  Bb8 {[%clk 0:02:16]} 15. b4 {[%clk 0:02:33]}  cxb4 {[%clk 0:02:06]} 16. cxb4 {[%clk 0:02:34]}  Bg4 {[%clk 0:02:05]} 17. a5 {[%clk 0:02:30]}  b5 {[%clk 0:01:57]} 18. Na3 {[%clk 0:02:23]}  a6 {[%clk 0:01:58]} 19. Rac1 {[%clk 0:02:18]}  Nd6 {[%clk 0:01:56]} 20. Rc2 {[%clk 0:02:12]}  h6 {[%clk 0:01:48]} 21. Nb1 {[%clk 0:02:02]}  f5 {[%clk 0:01:41]} 22. exf5 {[%clk 0:01:57]}  e4 {[%clk 0:01:41]} 23. fxg6 {[%clk 0:01:54]}  exd3 {[%clk 0:01:42]} 24. Rc6 {[%clk 0:01:49]}  Nc4 {[%clk 0:01:18]} 25. Qxd3 {[%clk 0:01:43]}  Bxf3 {[%clk 0:01:18]} 26. Rxf3 {[%clk 0:01:35]}  Rxf3 {[%clk 0:01:17]} 27. gxf3 {[%clk 0:01:36]}  Nxe3 {[%clk 0:01:05]} 28. Nc3 {[%clk 0:00:28]}  Qg5+ {[%clk 0:00:53]} 29. Kf2 {[%clk 0:00:25]}  Ba7 {[%clk 0:00:52]} 30. Ne4 {[%clk 0:00:12]}  Qg2+ {[%clk 0:00:39]} 31. Ke1 {[%clk 0:00:12]}  Qg1+ {[%clk 0:00:40]} 32. Kd2 {[%clk 0:00:11]}  Qd1+ {[%clk 0:00:39]} 33. Kc3 {[%clk 0:00:10]}  Nxd5+ {[%clk 0:00:39]} 0-1


[Site "https://www.chess.com"]

[Event "Titled Tuesday Blitz June 1 2021"]
[White "Sychev, Klementy"]
[Black "Hess, Robert"]
[WhiteFideId "4114060"]
[BlackFideId "2022036"]
[WhiteElo "2615"]
[BlackElo "2557"]
[Result "0-1"]
[Round "11"]
[TimeControl "180+1"]
[Date "2021.06.01"]
[WhiteClock "0:00:01"]
[BlackClock "0:00:03"]

1. e4 {[%clk 0:03:00]}  d6 {[%clk 0:02:59]} 2. f4 {[%clk 0:02:44]}  Nf6 {[%clk 0:03:00]} 3. Nc3 {[%clk 0:02:42]}  g6 {[%clk 0:02:56]} 4. Nf3 {[%clk 0:02:39]}  Bg7 {[%clk 0:02:57]} 5. e5 {[%clk 0:02:38]}  dxe5 {[%clk 0:02:56]} 6. fxe5 {[%clk 0:02:38]}  Nd5 {[%clk 0:02:55]} 7. Bc4 {[%clk 0:02:38]}  Be6 {[%clk 0:02:54]} 8. Qe2 {[%clk 0:02:33]}  O-O {[%clk 0:02:44]} 9. d4 {[%clk 0:02:31]}  c5 {[%clk 0:02:38]} 10. Nxd5 {[%clk 0:02:30]}  Bxd5 {[%clk 0:02:38]} 11. Bxd5 {[%clk 0:02:30]}  Qxd5 {[%clk 0:02:38]} 12. c4 {[%clk 0:02:31]}  Qd7 {[%clk 0:02:34]} 13. d5 {[%clk 0:02:31]}  e6 {[%clk 0:02:34]} 14. d6 {[%clk 0:02:31]}  f6 {[%clk 0:02:25]} 15. Bf4 {[%clk 0:02:02]}  fxe5 {[%clk 0:02:23]} 16. Bxe5 {[%clk 0:02:02]}  Bxe5 {[%clk 0:02:09]} 17. Qxe5 {[%clk 0:02:03]}  Rf5 {[%clk 0:02:05]} 18. Qg3 {[%clk 0:02:03]}  Nc6 {[%clk 0:02:02]} 19. O-O-O {[%clk 0:02:01]}  Raf8 {[%clk 0:01:30]} 20. h4 {[%clk 0:01:58]}  Rf4 {[%clk 0:01:30]} 21. h5 {[%clk 0:01:54]}  Rxc4+ {[%clk 0:01:20]} 22. Kb1 {[%clk 0:01:54]}  Qf7 {[%clk 0:00:45]} 23. a3 {[%clk 0:00:57]}  Qf5+ {[%clk 0:00:42]} 24. Ka1 {[%clk 0:00:53]}  Rg4 {[%clk 0:00:42]} 25. Qe1 {[%clk 0:00:49]}  Nd4 {[%clk 0:00:28]} 26. Qc3 {[%clk 0:00:42]}  Qd5 {[%clk 0:00:05]} 27. hxg6 {[%clk 0:00:37]}  hxg6 {[%clk 0:00:06]} 28. Nd2 {[%clk 0:00:17]}  Rxg2 {[%clk 0:00:05]} 29. Qh3 {[%clk 0:00:15]}  Kf7 {[%clk 0:00:04]} 30. Qh7+ {[%clk 0:00:14]}  Kf6 {[%clk 0:00:05]} 31. Rdf1+ {[%clk 0:00:11]}  Ke5 {[%clk 0:00:04]} 32. Qg7+ {[%clk 0:00:10]}  Kxd6 {[%clk 0:00:04]} 33. Qxf8+ {[%clk 0:00:10]}  Kc6 {[%clk 0:00:04]} 34. Qe8+ {[%clk 0:00:05]}  Kb6 {[%clk 0:00:04]} 35. Rd1 {[%clk 0:00:02]}  Rxd2 {[%clk 0:00:02]} 36. Rxd2 {[%clk 0:00:01]}  Nb3+ {[%clk 0:00:03]} 0-1


[Site "https://www.chess.com"]

[Event "Titled Tuesday Blitz June 1 2021"]
[White "Szente Varga, Fruzsina"]
[Black "Sadovsky, Artem"]
[WhiteFideId "712264"]
[BlackFideId "4155840"]
[WhiteElo "2106"]
[BlackElo "2476"]
[Result "1-0"]
[Round "11"]
[TimeControl "180+1"]
[Date "2021.06.01"]
[WhiteClock "0:00:20"]
[BlackClock "0:00:18"]

1. e4 {[%clk 0:03:00]}  g6 {[%clk 0:02:41]} 2. d4 {[%clk 0:02:59]}  Bg7 {[%clk 0:02:40]} 3. Nc3 {[%clk 0:03:00]}  c6 {[%clk 0:02:40]} 4. Be3 {[%clk 0:03:00]}  d5 {[%clk 0:02:41]} 5. e5 {[%clk 0:03:01]}  h5 {[%clk 0:02:41]} 6. Qd2 {[%clk 0:03:01]}  Nh6 {[%clk 0:02:41]} 7. f3 {[%clk 0:02:59]}  Nf5 {[%clk 0:02:41]} 8. Bf2 {[%clk 0:02:59]}  b5 {[%clk 0:02:40]} 9. O-O-O {[%clk 0:02:59]}  a5 {[%clk 0:02:40]} 10. Kb1 {[%clk 0:02:59]}  a4 {[%clk 0:02:39]} 11. g4 {[%clk 0:02:55]}  hxg4 {[%clk 0:02:35]} 12. fxg4 {[%clk 0:02:56]}  Nh6 {[%clk 0:02:27]} 13. g5 {[%clk 0:02:54]}  Nf5 {[%clk 0:02:25]} 14. h4 {[%clk 0:02:51]}  Bf8 {[%clk 0:02:16]} 15. Nce2 {[%clk 0:02:34]}  Ng7 {[%clk 0:02:11]} 16. Ng3 {[%clk 0:02:31]}  Bg4 {[%clk 0:02:09]} 17. Be2 {[%clk 0:02:31]}  Bxe2 {[%clk 0:02:09]} 18. N1xe2 {[%clk 0:02:31]}  e6 {[%clk 0:02:08]} 19. Nf4 {[%clk 0:02:22]}  Be7 {[%clk 0:02:08]} 20. Rdg1 {[%clk 0:02:15]}  Nd7 {[%clk 0:02:08]} 21. Qd3 {[%clk 0:02:05]}  Nf8 {[%clk 0:01:52]} 22. Nf1 {[%clk 0:01:44]}  Kd7 {[%clk 0:01:48]} 23. Ne3 {[%clk 0:01:42]}  Nf5 {[%clk 0:01:16]} 24. Ng4 {[%clk 0:01:40]}  Kc7 {[%clk 0:01:12]} 25. Nf6 {[%clk 0:01:37]}  Kb7 {[%clk 0:01:11]} 26. h5 {[%clk 0:01:35]}  gxh5 {[%clk 0:01:09]} 27. N4xh5 {[%clk 0:01:30]}  Ng6 {[%clk 0:01:08]} 28. Ng3 {[%clk 0:01:26]}  Nxg3 {[%clk 0:01:07]} 29. Qxg3 {[%clk 0:01:25]}  Bxf6 {[%clk 0:01:04]} 30. gxf6 {[%clk 0:01:24]}  Qc7 {[%clk 0:00:56]} 31. Qc3 {[%clk 0:01:14]}  Rag8 {[%clk 0:00:51]} 32. a3 {[%clk 0:01:07]}  Qb6 {[%clk 0:00:47]} 33. Qb4 {[%clk 0:01:01]}  Ka6 {[%clk 0:00:42]} 34. Be1 {[%clk 0:00:50]}  Nxe5 {[%clk 0:00:34]} 35. Rxg8 {[%clk 0:00:35]}  Rxh1 {[%clk 0:00:31]} 36. dxe5 {[%clk 0:00:27]}  Qe3 {[%clk 0:00:22]} 37. Qa5+ {[%clk 0:00:22]}  Kb7 {[%clk 0:00:20]} 38. Qa8+ {[%clk 0:00:22]}  Kc7 {[%clk 0:00:21]} 39. Qb8+ {[%clk 0:00:20]}  Kd7 {[%clk 0:00:18]} 40. Qc8# {[%clk 0:00:20]} 1-0


[Site "https://www.chess.com"]

[Event "Titled Tuesday Blitz June 1 2021"]
[White "TanitoluwaAps116"]
[Black "Tregubov, Pavel V."]
[BlackFideId "4115341"]
[WhiteElo "2429"]
[BlackElo "2423"]
[Result "0-1"]
[Round "11"]
[TimeControl "180+1"]
[Date "2021.06.01"]
[WhiteClock "0:00:47"]
[BlackClock "0:01:21"]

1. e4 {[%clk 0:02:57]}  e6 {[%clk 0:03:00]} 2. d4 {[%clk 0:02:55]}  d5 {[%clk 0:03:00]} 3. e5 {[%clk 0:02:54]}  c5 {[%clk 0:03:00]} 4. c3 {[%clk 0:02:54]}  Nc6 {[%clk 0:02:59]} 5. Nf3 {[%clk 0:02:54]}  Qb6 {[%clk 0:03:00]} 6. Bd3 {[%clk 0:02:52]}  Bd7 {[%clk 0:02:57]} 7. Bc2 {[%clk 0:02:40]}  cxd4 {[%clk 0:02:57]} 8. cxd4 {[%clk 0:02:40]}  Nb4 {[%clk 0:02:57]} 9. Nc3 {[%clk 0:02:40]}  Nxc2+ {[%clk 0:02:57]} 10. Qxc2 {[%clk 0:02:41]}  Ne7 {[%clk 0:02:54]} 11. O-O {[%clk 0:02:32]}  Nf5 {[%clk 0:02:51]} 12. Be3 {[%clk 0:02:32]}  Be7 {[%clk 0:02:47]} 13. g4 {[%clk 0:02:31]}  Nxe3 {[%clk 0:02:47]} 14. fxe3 {[%clk 0:02:31]}  O-O {[%clk 0:02:47]} 15. h4 {[%clk 0:02:23]}  Rac8 {[%clk 0:02:36]} 16. g5 {[%clk 0:02:18]}  Qa6 {[%clk 0:02:25]} 17. a3 {[%clk 0:02:05]}  Bb5 {[%clk 0:02:19]} 18. Rf2 {[%clk 0:01:59]}  Bd3 {[%clk 0:02:19]} 19. Qd2 {[%clk 0:01:58]}  Be4 {[%clk 0:02:09]} 20. Raf1 {[%clk 0:01:53]}  Qd3 {[%clk 0:02:05]} 21. Ne1 {[%clk 0:01:39]}  Qxd2 {[%clk 0:02:03]} 22. Rxd2 {[%clk 0:01:40]}  Bg6 {[%clk 0:02:00]} 23. Ng2 {[%clk 0:01:36]}  f6 {[%clk 0:01:52]} 24. exf6 {[%clk 0:01:33]}  gxf6 {[%clk 0:01:52]} 25. Nf4 {[%clk 0:01:31]}  fxg5 {[%clk 0:01:51]} 26. Nxg6 {[%clk 0:01:27]}  hxg6 {[%clk 0:01:48]} 27. Rg2 {[%clk 0:01:22]}  Rxf1+ {[%clk 0:01:40]} 28. Kxf1 {[%clk 0:01:17]}  Rf8+ {[%clk 0:01:29]} 29. Ke2 {[%clk 0:01:15]}  gxh4 {[%clk 0:01:29]} 30. Rxg6+ {[%clk 0:01:08]}  Kf7 {[%clk 0:01:29]} 31. Rh6 {[%clk 0:01:08]}  Rg8 {[%clk 0:01:29]} 32. Kf3 {[%clk 0:01:05]}  Bg5 {[%clk 0:01:27]} 33. Rh7+ {[%clk 0:01:04]}  Rg7 {[%clk 0:01:27]} 34. Rh8 {[%clk 0:01:02]}  Kg6 {[%clk 0:01:27]} 35. Ne2 {[%clk 0:00:52]}  Rf7+ {[%clk 0:01:26]} 36. Kg4 {[%clk 0:00:52]}  Bxe3 {[%clk 0:01:24]} 37. Rxh4 {[%clk 0:00:51]}  Rf2 {[%clk 0:01:24]} 38. Ng3 {[%clk 0:00:47]}  Rf4+ {[%clk 0:01:21]} 0-1


[Site "https://www.chess.com"]

[Event "Titled Tuesday Blitz June 1 2021"]
[White "Tristan, Leonardo"]
[Black "Dobrov, Vladimir"]
[WhiteFideId "113816"]
[BlackFideId "4136594"]
[WhiteElo "2404"]
[BlackElo "2614"]
[Result "0-1"]
[Round "11"]
[TimeControl "180+1"]
[Date "2021.06.01"]
[WhiteClock "0:00:03"]
[BlackClock "0:00:51"]

1. e4 {[%clk 0:03:00]}  c5 {[%clk 0:02:59]} 2. Nc3 {[%clk 0:03:00]}  Nc6 {[%clk 0:02:59]} 3. Bb5 {[%clk 0:03:00]}  Nd4 {[%clk 0:02:58]} 4. Bc4 {[%clk 0:03:01]}  g6 {[%clk 0:02:58]} 5. Nf3 {[%clk 0:03:01]}  Bg7 {[%clk 0:02:59]} 6. Nxd4 {[%clk 0:03:01]}  cxd4 {[%clk 0:02:59]} 7. Qf3 {[%clk 0:03:02]}  f5 {[%clk 0:03:00]} 8. Ne2 {[%clk 0:02:37]}  Qa5 {[%clk 0:03:00]} 9. O-O {[%clk 0:02:32]}  e6 {[%clk 0:02:59]} 10. d3 {[%clk 0:02:28]}  Ne7 {[%clk 0:02:59]} 11. Qg3 {[%clk 0:02:12]}  O-O {[%clk 0:02:57]} 12. a4 {[%clk 0:02:05]}  fxe4 {[%clk 0:02:36]} 13. dxe4 {[%clk 0:02:05]}  Qc5 {[%clk 0:02:36]} 14. Bd3 {[%clk 0:02:04]}  Nc6 {[%clk 0:02:36]} 15. Bf4 {[%clk 0:01:59]}  e5 {[%clk 0:02:34]} 16. Bd2 {[%clk 0:01:58]}  d5 {[%clk 0:02:17]} 17. b4 {[%clk 0:01:39]}  Nxb4 {[%clk 0:02:15]} 18. Bxb4 {[%clk 0:01:40]}  Qxb4 {[%clk 0:02:16]} 19. exd5 {[%clk 0:01:41]}  Bf5 {[%clk 0:02:11]} 20. Rab1 {[%clk 0:01:36]}  Qxa4 {[%clk 0:01:54]} 21. Rxb7 {[%clk 0:01:35]}  Rab8 {[%clk 0:01:50]} 22. Rxb8 {[%clk 0:01:29]}  Rxb8 {[%clk 0:01:51]} 23. f4 {[%clk 0:01:04]}  e4 {[%clk 0:01:50]} 24. Bxe4 {[%clk 0:00:59]}  Bxe4 {[%clk 0:01:50]} 25. f5 {[%clk 0:01:00]}  Rf8 {[%clk 0:01:48]} 26. f6 {[%clk 0:00:46]}  Bxf6 {[%clk 0:01:40]} 27. Qd6 {[%clk 0:00:43]}  Bf5 {[%clk 0:01:11]} 28. Ng3 {[%clk 0:00:27]}  Qxc2 {[%clk 0:00:54]} 29. Nxf5 {[%clk 0:00:28]}  gxf5 {[%clk 0:00:55]} 30. Qe6+ {[%clk 0:00:28]}  Kg7 {[%clk 0:00:54]} 31. d6 {[%clk 0:00:26]}  Qe4 {[%clk 0:00:52]} 32. Qd7+ {[%clk 0:00:21]}  Rf7 {[%clk 0:00:52]} 33. Qc8 {[%clk 0:00:20]}  d3 {[%clk 0:00:52]} 34. h4 {[%clk 0:00:03]}  Qd4+ {[%clk 0:00:51]} 35. Kh1 {[%clk 0:00:03]}  Qxh4+ {[%clk 0:00:51]} 0-1


[Site "https://www.chess.com"]

[Event "Titled Tuesday Blitz June 1 2021"]
[White "Vazquez, Facundo"]
[Black "Sukandar, Irine Kharisma"]
[WhiteFideId "3007669"]
[BlackFideId "7101937"]
[WhiteElo "1984"]
[BlackElo "2313"]
[Result "1-0"]
[Round "11"]
[TimeControl "180+1"]
[Date "2021.06.01"]
[WhiteClock "0:00:12"]
[BlackClock "0:00:02"]

1. d4 {[%clk 0:02:53]}  Nf6 {[%clk 0:02:59]} 2. c4 {[%clk 0:02:53]}  c5 {[%clk 0:02:58]} 3. d5 {[%clk 0:02:53]}  b5 {[%clk 0:02:58]} 4. cxb5 {[%clk 0:02:54]}  a6 {[%clk 0:02:57]} 5. bxa6 {[%clk 0:02:54]}  g6 {[%clk 0:02:56]} 6. Nc3 {[%clk 0:02:47]}  Bxa6 {[%clk 0:02:56]} 7. e4 {[%clk 0:02:38]}  Bxf1 {[%clk 0:02:56]} 8. Kxf1 {[%clk 0:02:38]}  d6 {[%clk 0:02:56]} 9. Nf3 {[%clk 0:02:38]}  Bg7 {[%clk 0:02:56]} 10. g3 {[%clk 0:02:39]}  O-O {[%clk 0:02:57]} 11. Kg2 {[%clk 0:02:39]}  Qb6 {[%clk 0:02:56]} 12. a4 {[%clk 0:02:38]}  Na6 {[%clk 0:02:56]} 13. Nd2 {[%clk 0:02:38]}  Nd7 {[%clk 0:02:32]} 14. Nb5 {[%clk 0:02:36]}  Nc7 {[%clk 0:02:30]} 15. Nc4 {[%clk 0:02:35]}  Qb7 {[%clk 0:02:28]} 16. Nca3 {[%clk 0:02:33]}  Rfb8 {[%clk 0:02:19]} 17. Qc2 {[%clk 0:02:15]}  Nb6 {[%clk 0:01:38]} 18. Nxc7 {[%clk 0:02:09]}  Qxc7 {[%clk 0:01:38]} 19. Nb5 {[%clk 0:02:10]}  Qc8 {[%clk 0:01:37]} 20. a5 {[%clk 0:01:53]}  Nxd5 {[%clk 0:01:30]} 21. Nxd6 {[%clk 0:01:35]}  exd6 {[%clk 0:01:12]} 22. exd5 {[%clk 0:01:35]}  Rb5 {[%clk 0:01:09]} 23. Re1 {[%clk 0:01:27]}  Rbxa5 {[%clk 0:01:08]} 24. Rxa5 {[%clk 0:01:27]}  Rxa5 {[%clk 0:01:08]} 25. b3 {[%clk 0:01:27]}  Ra8 {[%clk 0:01:04]} 26. Bf4 {[%clk 0:01:15]}  Qb7 {[%clk 0:01:01]} 27. Qc4 {[%clk 0:01:11]}  Rd8 {[%clk 0:00:59]} 28. Bg5 {[%clk 0:01:06]}  Rb8 {[%clk 0:00:58]} 29. Re7 {[%clk 0:01:03]}  Qc8 {[%clk 0:00:42]} 30. Qf4 {[%clk 0:00:43]}  Qf8 {[%clk 0:00:41]} 31. Qxd6 {[%clk 0:00:40]}  Rxb3 {[%clk 0:00:27]} 32. Qxc5 {[%clk 0:00:30]}  Rb7 {[%clk 0:00:16]} 33. d6 {[%clk 0:00:30]}  Qa8 {[%clk 0:00:11]} 34. Qd5 {[%clk 0:00:20]}  Rb8 {[%clk 0:00:09]} 35. Qxa8 {[%clk 0:00:19]}  Rxa8 {[%clk 0:00:09]} 36. d7 {[%clk 0:00:20]}  Kf8 {[%clk 0:00:09]} 37. Re3 {[%clk 0:00:17]}  f6 {[%clk 0:00:09]} 38. Bf4 {[%clk 0:00:18]}  Rd8 {[%clk 0:00:09]} 39. Rd3 {[%clk 0:00:16]}  Kf7 {[%clk 0:00:08]} 40. Bc7 {[%clk 0:00:16]}  Ke7 {[%clk 0:00:08]} 41. Bxd8+ {[%clk 0:00:16]}  Kxd8 {[%clk 0:00:09]} 42. Kf3 {[%clk 0:00:17]}  Bf8 {[%clk 0:00:08]} 43. h4 {[%clk 0:00:17]}  Bc5 {[%clk 0:00:08]} 44. Kg2 {[%clk 0:00:16]}  f5 {[%clk 0:00:05]} 45. f3 {[%clk 0:00:16]}  Bb6 {[%clk 0:00:05]} 46. h5 {[%clk 0:00:16]}  Ke7 {[%clk 0:00:05]} 47. hxg6 {[%clk 0:00:16]}  hxg6 {[%clk 0:00:05]} 48. Kh3 {[%clk 0:00:17]}  Bd8 {[%clk 0:00:03]} 49. g4 {[%clk 0:00:15]}  Ke6 {[%clk 0:00:02]} 50. gxf5+ {[%clk 0:00:14]}  gxf5 {[%clk 0:00:01]} 51. f4 {[%clk 0:00:14]}  Kf7 {[%clk 0:00:01]} 52. Kg3 {[%clk 0:00:15]}  Ke6 {[%clk 0:00:01]} 53. Kf3 {[%clk 0:00:15]}  Kf7 {[%clk 0:00:01]} 54. Ke3 {[%clk 0:00:15]}  Bb6+ {[%clk 0:00:01]} 55. Kd2 {[%clk 0:00:15]}  Bd8 {[%clk 0:00:01]} 56. Kc3 {[%clk 0:00:15]}  Kg6 {[%clk 0:00:01]} 57. Kc4 {[%clk 0:00:15]}  Kh5 {[%clk 0:00:02]} 58. Kd5 {[%clk 0:00:13]}  Kg4 {[%clk 0:00:02]} 59. Rd4 {[%clk 0:00:12]} 1-0


[Site "https://www.chess.com"]

[Event "Titled Tuesday Blitz June 1 2021"]
[White "Vazquez, Guillermo"]
[Black "Jarovinsky, Alexey"]
[WhiteFideId "3702308"]
[BlackFideId "14115131"]
[WhiteElo "2536"]
[BlackElo "2446"]
[Result "0-1"]
[Round "11"]
[TimeControl "180+1"]
[Date "2021.06.01"]
[WhiteClock "0:00:57"]
[BlackClock "0:00:30"]

1. b4 {[%clk 0:03:00]}  a5 {[%clk 0:02:57]} 2. b5 {[%clk 0:02:58]}  a4 {[%clk 0:02:56]} 3. e4 {[%clk 0:02:53]}  e6 {[%clk 0:02:54]} 4. d3 {[%clk 0:02:38]}  d5 {[%clk 0:02:51]} 5. Nd2 {[%clk 0:02:38]}  Bb4 {[%clk 0:02:46]} 6. Rb1 {[%clk 0:02:37]}  Bc3 {[%clk 0:02:45]} 7. Ne2 {[%clk 0:02:34]}  Ba5 {[%clk 0:02:40]} 8. g3 {[%clk 0:02:28]}  dxe4 {[%clk 0:02:40]} 9. dxe4 {[%clk 0:02:27]}  Nd7 {[%clk 0:02:21]} 10. Bg2 {[%clk 0:02:25]}  Nb6 {[%clk 0:02:21]} 11. O-O {[%clk 0:02:24]}  e5 {[%clk 0:02:15]} 12. f4 {[%clk 0:02:06]}  Be6 {[%clk 0:02:10]} 13. a3 {[%clk 0:02:03]}  Nf6 {[%clk 0:02:06]} 14. h3 {[%clk 0:01:48]}  Nc4 {[%clk 0:02:05]} 15. f5 {[%clk 0:01:38]}  Ne3 {[%clk 0:01:36]} 16. fxe6 {[%clk 0:01:32]}  Nxd1 {[%clk 0:01:35]} 17. exf7+ {[%clk 0:01:32]}  Kxf7 {[%clk 0:01:34]} 18. Rxd1 {[%clk 0:01:33]}  Qd7 {[%clk 0:01:15]} 19. Kh2 {[%clk 0:01:25]}  Rhd8 {[%clk 0:01:13]} 20. Ng1 {[%clk 0:01:22]}  Bxd2 {[%clk 0:01:05]} 21. Bxd2 {[%clk 0:01:22]}  Qxd2 {[%clk 0:01:05]} 22. Rxd2 {[%clk 0:01:23]}  Rxd2 {[%clk 0:01:05]} 23. Nf3 {[%clk 0:01:24]}  Rxc2 {[%clk 0:01:05]} 24. Nxe5+ {[%clk 0:01:24]}  Ke7 {[%clk 0:00:55]} 25. Nf3 {[%clk 0:01:16]}  Rd8 {[%clk 0:00:50]} 26. e5 {[%clk 0:01:13]}  Ne4 {[%clk 0:00:46]} 27. Re1 {[%clk 0:01:06]}  Nd2 {[%clk 0:00:44]} 28. Nh4 {[%clk 0:01:02]}  g6 {[%clk 0:00:43]} 29. Kh1 {[%clk 0:01:01]}  Rd3 {[%clk 0:00:40]} 30. g4 {[%clk 0:00:59]}  Rxa3 {[%clk 0:00:37]} 31. e6 {[%clk 0:00:59]}  Rb3 {[%clk 0:00:32]} 32. Re2 {[%clk 0:00:57]}  a3 {[%clk 0:00:30]} 0-1


[Site "https://www.chess.com"]